[Event "*** Titled Tuesday Blitz"]
[Site "Chess.com"]
[Date "2020.04.14"]
[Round "6"]
[White "AnkitGajwa"]
[Black "Larax"]
[Result "0-1"]
[WhiteElo "2538"]
[BlackElo "2405"]
[TimeControl "180+1"]
[EndTime "11:04:15 PDT"]
[Termination "Larax won by resignation"]

1. d4 {[%clk 0:02:59.9]} 1... Nf6 {[%clk 0:02:58.3]} 2. c4 {[%clk 0:02:59.6]}
2... e6 {[%clk 0:02:58.5]} 3. Nc3 {[%clk 0:02:59.2]} 3... Bb4 {[%clk 0:02:59]}
4. f3 {[%clk 0:02:58.9]} 4... Nh5 {[%clk 0:02:46.9]} 5. Nh3 {[%clk 0:02:55.1]}
5... d5 {[%clk 0:02:43.9]} 6. a3 {[%clk 0:02:51.5]} 6... Bxc3+ {[%clk
0:02:43.3]} 7. bxc3 {[%clk 0:02:50.8]} 7... c5 {[%clk 0:02:40.1]} 8. g4 {[%clk
0:02:42.3]} 8... Nf6 {[%clk 0:02:37.1]} 9. Bg2 {[%clk 0:02:39.9]} 9... Nc6
{[%clk 0:02:37]} 10. cxd5 {[%clk 0:02:31.7]} 10... Nxd5 {[%clk 0:02:32.2]} 11.
dxc5 {[%clk 0:02:31.8]} 11... Qa5 {[%clk 0:02:26.7]} 12. e4 {[%clk 0:02:29.9]}
12... Nc7 {[%clk 0:01:38.6]} 13. Be3 {[%clk 0:02:19.5]} 13... Qxc3+ {[%clk
0:01:36.2]} 14. Kf2 {[%clk 0:02:19.4]} 14... O-O {[%clk 0:01:33.2]} 15. Qc1
{[%clk 0:02:01.3]} 15... Qa5 {[%clk 0:01:23.8]} 16. g5 {[%clk 0:01:50.5]} 16...
e5 {[%clk 0:01:23.4]} 17. Rd1 {[%clk 0:01:46.8]} 17... Ne6 {[%clk 0:01:16.4]}
18. Ng1 {[%clk 0:01:40.1]} 18... Ned4 {[%clk 0:01:11.3]} 19. Qb2 {[%clk
0:01:31.2]} 19... Qxc5 {[%clk 0:01:00.6]} 20. Ne2 {[%clk 0:01:29]} 20... Be6
{[%clk 0:00:56.5]} 21. Rac1 {[%clk 0:01:27.4]} 21... Qa5 {[%clk 0:00:51.6]} 22.
Nxd4 {[%clk 0:00:55.1]} 22... Nxd4 {[%clk 0:00:51.5]} 23. Bxd4 {[%clk
0:00:43.7]} 23... exd4 {[%clk 0:00:51.3]} 24. h4 {[%clk 0:00:42.6]} 24... Rfd8
{[%clk 0:00:47.9]} 25. Rxd4 {[%clk 0:00:37.5]} 25... Rxd4 {[%clk 0:00:43.3]} 26.
Qxd4 {[%clk 0:00:37.2]} 26... Qxa3 {[%clk 0:00:42.3]} 27. Rc7 {[%clk 0:00:37]}
27... b6 {[%clk 0:00:28.1]} 28. h5 {[%clk 0:00:34.4]} 28... Qa5 {[%clk 0:00:19]}
29. f4 {[%clk 0:00:26.3]} 29... Rf8 {[%clk 0:00:18.6]} 30. h6 {[%clk 0:00:25.5]}
30... gxh6 {[%clk 0:00:14.7]} 31. gxh6 {[%clk 0:00:25.2]} 31... f6 {[%clk
0:00:14.9]} 32. f5 {[%clk 0:00:24.8]} 32... Bxf5 {[%clk 0:00:14.6]} 33. exf5
{[%clk 0:00:21.8]} 33... Qxf5+ {[%clk 0:00:15.5]} 34. Kg1 {[%clk 0:00:20.4]}
34... Kh8 {[%clk 0:00:15.9]} 35. Rg7 {[%clk 0:00:19]} 35... Qh5 {[%clk
0:00:15.6]} 36. Qf4 {[%clk 0:00:18.4]} 36... a5 {[%clk 0:00:14.1]} 37. Be4
{[%clk 0:00:17.9]} 37... Rf7 {[%clk 0:00:14.3]} 38. Rxf7 {[%clk 0:00:16.6]}
38... Qxf7 {[%clk 0:00:12.8]} 39. Qb8+ {[%clk 0:00:16.8]} 39... Qg8+ {[%clk
0:00:12.8]} 40. Qxg8+ {[%clk 0:00:17]} 40... Kxg8 {[%clk 0:00:13.7]} 41. Bc6
{[%clk 0:00:16.2]} 41... Kf7 {[%clk 0:00:13.1]} 42. Kf2 {[%clk 0:00:16.4]} 42...
Kg6 {[%clk 0:00:13.5]} 43. Kf3 {[%clk 0:00:17]} 43... Kxh6 {[%clk 0:00:14.4]}
44. Kf4 {[%clk 0:00:17.5]} 44... Kg7 {[%clk 0:00:14.5]} 45. Kf5 {[%clk
0:00:17.5]} 45... Kf7 {[%clk 0:00:15]} 46. Bb5 {[%clk 0:00:17.9]} 46... Ke7
{[%clk 0:00:15.3]} 47. Bc6 {[%clk 0:00:17.2]} 47... h5 {[%clk 0:00:15.2]} 48.
Kg6 {[%clk 0:00:17.3]} 48... h4 {[%clk 0:00:15]} 49. Kh5 {[%clk 0:00:17.4]}
49... h3 {[%clk 0:00:15]} 50. Kg4 {[%clk 0:00:18]} 50... Kd6 {[%clk 0:00:15.3]}
51. Bh1 {[%clk 0:00:17.2]} 51... a4 {[%clk 0:00:15.3]} 52. Kxh3 {[%clk
0:00:17.6]} 52... a3 {[%clk 0:00:14.8]} 0-1

[Event "*** Titled Tuesday Blitz"]
[Site "Chess.com"]
[Date "2020.04.14"]
[Round "6"]
[White "Irishchessman16"]
[Black "Haykoooo0o"]
[Result "1-0"]
[WhiteElo "2374"]
[BlackElo "2582"]
[TimeControl "180+1"]
[EndTime "11:04:15 PDT"]
[Termination "Irishchessman16 won by resignation"]

1. e4 {[%clk 0:03:00.9]} 1... e5 {[%clk 0:02:59.6]} 2. Nf3 {[%clk 0:03:00.5]}
2... Nc6 {[%clk 0:02:59.9]} 3. d4 {[%clk 0:02:59.7]} 3... exd4 {[%clk 0:03:00]}
4. Nxd4 {[%clk 0:03:00.6]} 4... Nf6 {[%clk 0:03:00.2]} 5. Nxc6 {[%clk 0:03:00]}
5... bxc6 {[%clk 0:03:00.2]} 6. e5 {[%clk 0:03:00.9]} 6... Qe7 {[%clk
0:02:58.9]} 7. Qe2 {[%clk 0:03:01.5]} 7... Nd5 {[%clk 0:02:58.8]} 8. h4 {[%clk
0:03:02.2]} 8... a5 {[%clk 0:02:58.4]} 9. c4 {[%clk 0:03:01]} 9... Nb6 {[%clk
0:02:57.4]} 10. Nc3 {[%clk 0:02:52.5]} 10... Qe6 {[%clk 0:02:57.5]} 11. Qe4
{[%clk 0:02:50]} 11... d5 {[%clk 0:02:55.1]} 12. exd6 {[%clk 0:02:49.2]} 12...
Bxd6 {[%clk 0:02:53.4]} 13. Be3 {[%clk 0:02:46]} 13... Qxe4 {[%clk 0:02:48.1]}
14. Nxe4 {[%clk 0:02:45.5]} 14... Bb4+ {[%clk 0:02:48.7]} 15. Kd1 {[%clk
0:02:41.7]} 15... O-O {[%clk 0:02:47]} 16. a3 {[%clk 0:02:40.4]} 16... Be7
{[%clk 0:02:46.5]} 17. Kc2 {[%clk 0:02:36.7]} 17... Bf5 {[%clk 0:02:46.4]} 18.
Bd3 {[%clk 0:02:36.8]} 18... Nxc4 {[%clk 0:02:42.4]} 19. Bxc4 {[%clk 0:02:34.7]}
19... Bxe4+ {[%clk 0:02:42.3]} 20. Bd3 {[%clk 0:02:35.6]} 20... Bxg2 {[%clk
0:02:36.3]} 21. Rhg1 {[%clk 0:02:34.8]} 21... Bd5 {[%clk 0:02:36.4]} 22. Bd4
{[%clk 0:02:31.3]} 22... f6 {[%clk 0:02:36]} 23. h5 {[%clk 0:02:30.1]} 23... Bd6
{[%clk 0:02:33.6]} 24. Rg4 {[%clk 0:02:25]} 24... Bf3 {[%clk 0:02:28.1]} 25. Rh4
{[%clk 0:02:13.7]} 25... Rad8 {[%clk 0:02:22.2]} 26. Bc3 {[%clk 0:02:11.6]}
26... Be5 {[%clk 0:02:15.5]} 27. Bxa5 {[%clk 0:02:10.8]} 27... Rd4 {[%clk
0:01:57.4]} 28. Rxd4 {[%clk 0:02:05.9]} 28... Bxd4 {[%clk 0:01:58.3]} 29. h6
{[%clk 0:02:01.3]} 29... g6 {[%clk 0:01:52.6]} 30. Bc4+ {[%clk 0:01:57.5]} 30...
Bd5 {[%clk 0:01:52.3]} 31. Bxd5+ {[%clk 0:01:55.4]} 31... cxd5 {[%clk
0:01:53.2]} 32. Rd1 {[%clk 0:01:55.1]} 32... c5 {[%clk 0:01:52.3]} 33. Bb6
{[%clk 0:01:45.9]} 33... Rb8 {[%clk 0:01:46.7]} 34. Rxd4 {[%clk 0:01:45.9]}
34... cxd4 {[%clk 0:01:44.1]} 35. Bxd4 {[%clk 0:01:46.8]} 35... Kf7 {[%clk
0:01:43.6]} 36. b4 {[%clk 0:01:43.7]} 36... Ke6 {[%clk 0:01:42.1]} 37. Kb3
{[%clk 0:01:42.4]} 37... g5 {[%clk 0:01:40.7]} 38. a4 {[%clk 0:01:42.2]} 38...
f5 {[%clk 0:01:40.7]} 39. a5 {[%clk 0:01:42.2]} 39... Kd6 {[%clk 0:01:39.5]} 40.
Ka4 {[%clk 0:01:33.2]} 40... Kc6 {[%clk 0:01:39.2]} 41. a6 {[%clk 0:01:33.5]}
41... f4 {[%clk 0:01:32.8]} 42. b5+ {[%clk 0:01:31.1]} 42... Kd7 {[%clk
0:01:13.5]} 43. b6 {[%clk 0:01:14.1]} 43... Kc6 {[%clk 0:00:59.9]} 44. b7 {[%clk
0:01:08.9]} 44... g4 {[%clk 0:00:31.9]} 45. a7 {[%clk 0:01:04.8]} 45... Kxb7
{[%clk 0:00:24.6]} 46. axb8=Q+ {[%clk 0:01:03.2]} 46... Kxb8 {[%clk 0:00:25.5]}
47. Be5+ {[%clk 0:01:03]} 47... Kb7 {[%clk 0:00:26.4]} 48. Bxf4 {[%clk
0:01:02.6]} 48... Kc6 {[%clk 0:00:27.3]} 49. Kb4 {[%clk 0:01:02.2]} 49... Kd7
{[%clk 0:00:27.9]} 50. Kc5 {[%clk 0:01:00.7]} 50... Ke6 {[%clk 0:00:28.8]} 51.
Kd4 {[%clk 0:01:00.6]} 51... Kf5 {[%clk 0:00:28.9]} 52. Be3 {[%clk 0:00:55.8]}
52... Ke6 {[%clk 0:00:29]} 53. Bd2 {[%clk 0:00:54.1]} 53... Kd6 {[%clk
0:00:29.3]} 54. Ke3 {[%clk 0:00:49.4]} 54... Ke5 {[%clk 0:00:29.1]} 55. Bc3+
{[%clk 0:00:49.2]} 55... Kf5 {[%clk 0:00:29.3]} 56. Bg7 {[%clk 0:00:47.7]} 56...
Kg5 {[%clk 0:00:26.2]} 57. Be5 {[%clk 0:00:44.5]} 57... Kxh6 {[%clk 0:00:24]}
58. Kd4 {[%clk 0:00:43.9]} 58... Kg5 {[%clk 0:00:22.9]} 59. Kxd5 {[%clk
0:00:44.3]} 59... Kf5 {[%clk 0:00:22.6]} 60. Bg3 {[%clk 0:00:40.2]} 60... h5
{[%clk 0:00:22.5]} 61. Bh4 {[%clk 0:00:36.8]} 61... Kf4 {[%clk 0:00:22.2]} 62.
Ke6 {[%clk 0:00:37]} 62... Kf3 {[%clk 0:00:20.7]} 63. Kf6 {[%clk 0:00:36.5]}
63... Kg2 {[%clk 0:00:14.7]} 64. Kg5 {[%clk 0:00:36.3]} 64... Kh3 {[%clk
0:00:15]} 65. Kxh5 {[%clk 0:00:36.2]} 65... g3 {[%clk 0:00:14.9]} 66. fxg3
{[%clk 0:00:35.4]} 1-0

[Event "*** Titled Tuesday Blitz"]
[Site "Chess.com"]
[Date "2020.04.14"]
[Round "6"]
[White "827883"]
[Black "SahaNeelash"]
[Result "1/2-1/2"]
[WhiteElo "2095"]
[BlackElo "2556"]
[TimeControl "180+1"]
[EndTime "11:04:16 PDT"]
[Termination "Game drawn by repetition"]

1. e4 {[%clk 0:03:00.9]} 1... c6 {[%clk 0:02:57.2]} 2. c4 {[%clk 0:03:01]} 2...
d5 {[%clk 0:02:56.6]} 3. cxd5 {[%clk 0:03:01.9]} 3... cxd5 {[%clk 0:02:57]} 4.
exd5 {[%clk 0:03:02.8]} 4... Nf6 {[%clk 0:02:55.7]} 5. Qa4+ {[%clk 0:03:03.2]}
5... Bd7 {[%clk 0:02:54]} 6. Qb3 {[%clk 0:03:03.3]} 6... Qc7 {[%clk 0:02:46.7]}
7. Nc3 {[%clk 0:03:02.5]} 7... a6 {[%clk 0:02:46.7]} 8. a4 {[%clk 0:02:56.2]}
8... Bf5 {[%clk 0:02:42.6]} 9. Nf3 {[%clk 0:02:51.9]} 9... Nbd7 {[%clk 0:02:42]}
10. d4 {[%clk 0:02:45.4]} 10... Rd8 {[%clk 0:02:32.9]} 11. a5 {[%clk 0:02:39.9]}
11... g6 {[%clk 0:02:27.5]} 12. Be2 {[%clk 0:02:39.1]} 12... Bg7 {[%clk
0:02:27.5]} 13. O-O {[%clk 0:02:39.5]} 13... O-O {[%clk 0:02:27.6]} 14. g3
{[%clk 0:02:35.6]} 14... Ne4 {[%clk 0:02:18.8]} 15. Bf4 {[%clk 0:02:32.6]} 15...
Nd6 {[%clk 0:02:14.8]} 16. Rfc1 {[%clk 0:02:21.1]} 16... Qb8 {[%clk 0:02:13.2]}
17. Ne5 {[%clk 0:02:09.9]} 17... Nf6 {[%clk 0:02:06.1]} 18. g4 {[%clk 0:01:44]}
18... Bd7 {[%clk 0:01:58.8]} 19. h3 {[%clk 0:01:42.8]} 19... Qa7 {[%clk
0:01:55.8]} 20. Rd1 {[%clk 0:01:38]} 20... Nfe4 {[%clk 0:01:38.5]} 21. Bf3
{[%clk 0:01:32.1]} 21... Nf6 {[%clk 0:01:25.1]} 22. Rac1 {[%clk 0:01:29.5]}
22... Bb5 {[%clk 0:01:06.5]} 23. Kg2 {[%clk 0:01:07.4]} 23... Nfe8 {[%clk
0:00:47]} 24. Ne4 {[%clk 0:00:53.2]} 24... Nxe4 {[%clk 0:00:44.5]} 25. Bxe4
{[%clk 0:00:53.6]} 25... Nd6 {[%clk 0:00:44.9]} 26. Bf3 {[%clk 0:00:51.2]} 26...
Rc8 {[%clk 0:00:44.2]} 27. Qb4 {[%clk 0:00:47]} 27... Rxc1 {[%clk 0:00:35.3]}
28. Rxc1 {[%clk 0:00:47.9]} 28... f6 {[%clk 0:00:33.6]} 29. Rc7 {[%clk
0:00:32.3]} 29... fxe5 {[%clk 0:00:32.5]} 30. Bxe5 {[%clk 0:00:28.4]} 30... Bxe5
{[%clk 0:00:20.2]} 31. dxe5 {[%clk 0:00:28.7]} 31... Be2 {[%clk 0:00:20.5]} 32.
exd6 {[%clk 0:00:15.6]} 32... Bxf3+ {[%clk 0:00:20.3]} 33. Kg3 {[%clk
0:00:15.9]} 33... Bxd5 {[%clk 0:00:20.6]} 34. Qd2 {[%clk 0:00:12.1]} 34... e6
{[%clk 0:00:18.3]} 35. f4 {[%clk 0:00:09.1]} 35... Qb8 {[%clk 0:00:17.6]} 36.
Qc3 {[%clk 0:00:09.1]} 36... e5 {[%clk 0:00:11.8]} 37. Qxe5 {[%clk 0:00:08.2]}
37... Bf7 {[%clk 0:00:12.3]} 38. d7 {[%clk 0:00:05.8]} 38... Qd8 {[%clk
0:00:12.6]} 39. Rxb7 {[%clk 0:00:05.9]} 39... Bc4 {[%clk 0:00:12.2]} 40. Rc7
{[%clk 0:00:05.4]} 40... Bb5 {[%clk 0:00:12.4]} 41. Qd5+ {[%clk 0:00:02.6]}
41... Kg7 {[%clk 0:00:12.1]} 42. Qe5+ {[%clk 0:00:03]} 42... Kg8 {[%clk
0:00:10.4]} 43. Qd5+ {[%clk 0:00:03.4]} 43... Kg7 {[%clk 0:00:09.6]} 44. Qe5+
{[%clk 0:00:03.9]} 44... Kf7 {[%clk 0:00:09.1]} 45. Qd5+ {[%clk 0:00:04.3]}
45... Ke7 {[%clk 0:00:08.9]} 46. Qe5+ {[%clk 0:00:04.8]} 46... Kf7 {[%clk
0:00:09.5]} 47. Qd5+ {[%clk 0:00:05.1]} 47... Kg7 {[%clk 0:00:09.5]} 1/2-1/2

[Event "*** Titled Tuesday Blitz"]
[Site "Chess.com"]
[Date "2020.04.14"]
[Round "6"]
[White "Sanyura"]
[Black "nocnypako"]
[Result "1/2-1/2"]
[WhiteElo "2414"]
[BlackElo "2590"]
[TimeControl "180+1"]
[EndTime "11:04:17 PDT"]
[Termination "Game drawn - insufficient material"]

1. e4 {[%clk 0:03:00.9]} 1... e6 {[%clk 0:02:58.2]} 2. d4 {[%clk 0:02:58.9]}
2... d5 {[%clk 0:02:53.8]} 3. Nc3 {[%clk 0:02:58.1]} 3... Bb4 {[%clk 0:02:47.1]}
4. e5 {[%clk 0:02:53.2]} 4... c5 {[%clk 0:02:45.6]} 5. Bd2 {[%clk 0:02:51.7]}
5... cxd4 {[%clk 0:02:42.3]} 6. Nb5 {[%clk 0:02:51]} 6... Bc5 {[%clk 0:02:40.5]}
7. b4 {[%clk 0:02:46.6]} 7... Be7 {[%clk 0:02:32.1]} 8. Qg4 {[%clk 0:02:43.8]}
8... Kf8 {[%clk 0:02:11.6]} 9. Nf3 {[%clk 0:02:37.8]} 9... Nc6 {[%clk
0:02:09.7]} 10. a3 {[%clk 0:02:35.2]} 10... f5 {[%clk 0:02:09.3]} 11. Qg3 {[%clk
0:02:29.8]} 11... Nh6 {[%clk 0:02:05.7]} 12. Nbxd4 {[%clk 0:02:27.7]} 12... Nf7
{[%clk 0:02:01.1]} 13. Bd3 {[%clk 0:02:23.3]} 13... Nxd4 {[%clk 0:01:55.2]} 14.
Nxd4 {[%clk 0:02:23.3]} 14... Bg5 {[%clk 0:01:49.4]} 15. Bxg5 {[%clk 0:02:15.4]}
15... Qxg5 {[%clk 0:01:50.3]} 16. f4 {[%clk 0:02:14]} 16... Qxg3+ {[%clk
0:01:47.7]} 17. hxg3 {[%clk 0:02:14.9]} 17... Ke7 {[%clk 0:01:45.7]} 18. Ke2
{[%clk 0:02:09]} 18... Bd7 {[%clk 0:01:42.6]} 19. Ke3 {[%clk 0:02:07]} 19... h6
{[%clk 0:01:42.4]} 20. Rh2 {[%clk 0:02:02.5]} 20... a5 {[%clk 0:01:37.5]} 21. b5
{[%clk 0:01:54.7]} 21... Rhc8 {[%clk 0:01:36.4]} 22. Rhh1 {[%clk 0:01:49.4]}
22... Rc5 {[%clk 0:01:30.9]} 23. Rhb1 {[%clk 0:01:44]} 23... Rac8 {[%clk
0:01:30]} 24. Nb3 {[%clk 0:01:40.9]} 24... Rc3 {[%clk 0:01:27.4]} 25. Nxa5
{[%clk 0:01:38.6]} 25... b6 {[%clk 0:01:27.3]} 26. Nb7 {[%clk 0:01:30.1]} 26...
R8c7 {[%clk 0:01:26.4]} 27. Nd6 {[%clk 0:01:00.9]} 27... Nxd6 {[%clk 0:01:25.2]}
28. exd6+ {[%clk 0:01:01.8]} 28... Kxd6 {[%clk 0:01:25.8]} 29. Kd4 {[%clk
0:01:02.1]} 29... R3c5 {[%clk 0:01:21.1]} 30. a4 {[%clk 0:01:02]} 30... Ra7
{[%clk 0:01:17.4]} 31. Rb2 {[%clk 0:00:51.5]} 31... Ra5 {[%clk 0:01:15.9]} 32.
Rb4 {[%clk 0:00:50.4]} 32... Rc8 {[%clk 0:01:08.9]} 33. Re1 {[%clk 0:00:44.6]}
33... Rca8 {[%clk 0:01:08]} 34. Ra1 {[%clk 0:00:45.1]} 34... g5 {[%clk
0:01:07.1]} 35. c3 {[%clk 0:00:28.1]} 35... Rg8 {[%clk 0:00:50]} 36. Rh1 {[%clk
0:00:25.2]} 36... gxf4 {[%clk 0:00:48.9]} 37. gxf4 {[%clk 0:00:26.1]} 37... Rxg2
{[%clk 0:00:48.8]} 38. Rxh6 {[%clk 0:00:26]} 38... Ra2 {[%clk 0:00:39.7]} 39.
Bxf5 {[%clk 0:00:24.9]} 39... R2xa4 {[%clk 0:00:39.9]} 40. Bxe6 {[%clk
0:00:22.9]} 40... Bxe6 {[%clk 0:00:36.6]} 41. f5 {[%clk 0:00:22.9]} 41... Rxb4+
{[%clk 0:00:36.8]} 42. cxb4 {[%clk 0:00:23.6]} 42... Rxb5 {[%clk 0:00:37.3]} 43.
Rxe6+ {[%clk 0:00:23.2]} 43... Kd7 {[%clk 0:00:37.7]} 44. Rh6 {[%clk 0:00:21.6]}
44... Rxb4+ {[%clk 0:00:35.4]} 45. Kxd5 {[%clk 0:00:22.5]} 45... Rb1 {[%clk
0:00:35.7]} 46. Rh7+ {[%clk 0:00:21.4]} 46... Ke8 {[%clk 0:00:33.6]} 47. Ke6
{[%clk 0:00:21.5]} 47... Re1+ {[%clk 0:00:33.7]} 48. Kf6 {[%clk 0:00:21.9]}
48... b5 {[%clk 0:00:34.2]} 49. Rb7 {[%clk 0:00:21.7]} 49... Rb1 {[%clk
0:00:33.7]} 50. Rb8+ {[%clk 0:00:20.5]} 50... Kd7 {[%clk 0:00:33.2]} 51. Kg7
{[%clk 0:00:21]} 51... Kc6 {[%clk 0:00:29.3]} 52. f6 {[%clk 0:00:20.8]} 52...
Rg1+ {[%clk 0:00:29.9]} 53. Kf8 {[%clk 0:00:20.3]} 53... Kc5 {[%clk 0:00:30.1]}
54. f7 {[%clk 0:00:20.5]} 54... b4 {[%clk 0:00:27.8]} 55. Ke7 {[%clk 0:00:20.6]}
55... Rf1 {[%clk 0:00:25]} 56. f8=Q {[%clk 0:00:18.9]} 56... Rxf8 {[%clk
0:00:24.8]} 57. Kxf8 {[%clk 0:00:19]} 57... Kc4 {[%clk 0:00:24]} 58. Ke7 {[%clk
0:00:19.4]} 58... b3 {[%clk 0:00:24.3]} 59. Kd6 {[%clk 0:00:19.8]} 59... Kc3
{[%clk 0:00:24.7]} 60. Kc5 {[%clk 0:00:20.1]} 60... b2 {[%clk 0:00:25.1]} 61.
Kd5 {[%clk 0:00:18.8]} 61... Kc2 {[%clk 0:00:25.2]} 62. Rc8+ {[%clk 0:00:18.9]}
62... Kd1 {[%clk 0:00:25]} 63. Rb8 {[%clk 0:00:19.6]} 63... Kc1 {[%clk
0:00:25.3]} 64. Rxb2 {[%clk 0:00:19.9]} 64... Kxb2 {[%clk 0:00:25.3]} 1/2-1/2

[Event "*** Titled Tuesday Blitz"]
[Site "Chess.com"]
[Date "2020.04.14"]
[Round "6"]
[White "norwaytoadog"]
[Black "Spriteball"]
[Result "0-1"]
[WhiteElo "2225"]
[BlackElo "1934"]
[TimeControl "180+1"]
[EndTime "11:04:17 PDT"]
[Termination "Spriteball won on time"]

1. e4 {[%clk 0:03:00.6]} 1... c5 {[%clk 0:02:59.4]} 2. Nf3 {[%clk 0:03:00.5]}
2... d6 {[%clk 0:02:59.4]} 3. Bb5+ {[%clk 0:03:00.5]} 3... Nd7 {[%clk
0:02:58.3]} 4. d4 {[%clk 0:03:00.3]} 4... cxd4 {[%clk 0:02:56.5]} 5. Qxd4 {[%clk
0:03:00.4]} 5... Nf6 {[%clk 0:02:42.2]} 6. O-O {[%clk 0:02:56.8]} 6... e6 {[%clk
0:02:36.4]} 7. e5 {[%clk 0:02:48.3]} 7... dxe5 {[%clk 0:02:26.4]} 8. Nxe5 {[%clk
0:02:47.7]} 8... Be7 {[%clk 0:02:26.5]} 9. Rd1 {[%clk 0:02:45.5]} 9... a6 {[%clk
0:02:21.6]} 10. Ba4 {[%clk 0:02:33.6]} 10... b5 {[%clk 0:02:13.5]} 11. Nc6
{[%clk 0:02:21.2]} 11... Qc7 {[%clk 0:02:12.9]} 12. Nxe7 {[%clk 0:02:15.5]}
12... bxa4 {[%clk 0:02:05.2]} 13. Nf5 {[%clk 0:01:37.6]} 13... exf5 {[%clk
0:01:57.1]} 14. Bf4 {[%clk 0:01:31.8]} 14... Qb6 {[%clk 0:01:30]} 15. Re1+
{[%clk 0:01:27.7]} 15... Kf8 {[%clk 0:01:29.8]} 16. Bd6+ {[%clk 0:01:13]} 16...
Kg8 {[%clk 0:01:29.5]} 17. Qf4 {[%clk 0:00:54.2]} 17... g6 {[%clk 0:01:14.6]}
18. Nc3 {[%clk 0:00:46]} 18... Kg7 {[%clk 0:01:03.7]} 19. Re7 {[%clk 0:00:44.6]}
19... Re8 {[%clk 0:00:56.6]} 20. Rae1 {[%clk 0:00:43.8]} 20... Rxe7 {[%clk
0:00:53.4]} 21. Bxe7 {[%clk 0:00:42.8]} 21... Qxb2 {[%clk 0:00:43]} 22. Qd4
{[%clk 0:00:39.1]} 22... Qb6 {[%clk 0:00:23.1]} 23. Qh4 {[%clk 0:00:30.4]} 23...
Bb7 {[%clk 0:00:20.6]} 24. h3 {[%clk 0:00:28.9]} 24... Re8 {[%clk 0:00:20.2]}
25. Bxf6+ {[%clk 0:00:20.1]} 25... Nxf6 {[%clk 0:00:19.9]} 26. Rxe8 {[%clk
0:00:19.1]} 26... Nxe8 {[%clk 0:00:20.8]} 27. Qe7 {[%clk 0:00:18.8]} 27... Nf6
{[%clk 0:00:20]} 28. Ne2 {[%clk 0:00:17.8]} 28... Qc6 {[%clk 0:00:19.1]} 29. Nf4
{[%clk 0:00:17.5]} 29... Qe4 {[%clk 0:00:19.3]} 30. Qd6 {[%clk 0:00:07.8]} 30...
Qe1+ {[%clk 0:00:19.3]} 31. Kh2 {[%clk 0:00:07.7]} 31... Qxf2 {[%clk 0:00:20.2]}
32. Qe5 {[%clk 0:00:07.1]} 32... Be4 {[%clk 0:00:16.1]} 33. Qc7 {[%clk
0:00:05.1]} 33... Bd5 {[%clk 0:00:12.8]} 34. Qe5 {[%clk 0:00:04.3]} 34... Be4
{[%clk 0:00:12.3]} 35. Qc7 {[%clk 0:00:04.1]} 35... a3 {[%clk 0:00:12.8]} 36. h4
{[%clk 0:00:02.9]} 36... Ng4+ {[%clk 0:00:10.7]} 37. Kh3 {[%clk 0:00:03]} 37...
Qe3+ {[%clk 0:00:10]} 38. g3 {[%clk 0:00:01.7]} 38... Nf2+ {[%clk 0:00:09.8]}
39. Kh2 {[%clk 0:00:01.7]} 39... Ng4+ {[%clk 0:00:09.4]} 40. Kh3 {[%clk
0:00:02.1]} 40... Qf2 {[%clk 0:00:06.2]} 41. Ne6+ {[%clk 0:00:01.9]} 41... Kf6
{[%clk 0:00:05.1]} 42. Qd8+ {[%clk 0:00:01.4]} 42... Kxe6 {[%clk 0:00:04.9]} 43.
Qe8+ {[%clk 0:00:01.5]} 43... Kf6 {[%clk 0:00:04.9]} 44. Qh8+ {[%clk 0:00:01.3]}
44... Ke7 {[%clk 0:00:03.8]} 0-1

[Event "*** Titled Tuesday Blitz"]
[Site "Chess.com"]
[Date "2020.04.14"]
[Round "6"]
[White "DivyaDeshmukh23"]
[Black "JustWatch000"]
[Result "0-1"]
[WhiteElo "2483"]
[BlackElo "2631"]
[TimeControl "180+1"]
[EndTime "11:04:19 PDT"]
[Termination "JustWatch000 won by resignation"]

1. e4 {[%clk 0:03:00.9]} 1... c5 {[%clk 0:02:59.8]} 2. Nf3 {[%clk 0:03:00.6]}
2... e6 {[%clk 0:02:59.5]} 3. d4 {[%clk 0:03:01]} 3... cxd4 {[%clk 0:03:00.4]}
4. Nxd4 {[%clk 0:03:01.9]} 4... Nc6 {[%clk 0:03:00.5]} 5. Nc3 {[%clk 0:03:00.7]}
5... Nf6 {[%clk 0:03:00.6]} 6. Be3 {[%clk 0:02:55]} 6... Bb4 {[%clk 0:02:59.7]}
7. Bd3 {[%clk 0:02:54.1]} 7... d5 {[%clk 0:02:58.9]} 8. Nxc6 {[%clk 0:02:31.9]}
8... bxc6 {[%clk 0:02:56.6]} 9. exd5 {[%clk 0:02:31.7]} 9... cxd5 {[%clk
0:02:55.8]} 10. O-O {[%clk 0:02:28.4]} 10... O-O {[%clk 0:02:55.8]} 11. Bd4
{[%clk 0:02:20.7]} 11... Re8 {[%clk 0:02:50.7]} 12. Re1 {[%clk 0:01:56.3]} 12...
Bd7 {[%clk 0:02:43]} 13. Qf3 {[%clk 0:01:51.5]} 13... Bd6 {[%clk 0:02:39.2]} 14.
Nb5 {[%clk 0:01:42.2]} 14... Bb8 {[%clk 0:02:32]} 15. Bxf6 {[%clk 0:01:22.9]}
15... Qxf6 {[%clk 0:02:32.9]} 16. Qxf6 {[%clk 0:01:22.6]} 16... gxf6 {[%clk
0:02:33.8]} 17. c4 {[%clk 0:01:23.2]} 17... a6 {[%clk 0:02:29.8]} 18. Nc3 {[%clk
0:01:20.9]} 18... dxc4 {[%clk 0:02:27.8]} 19. Bxc4 {[%clk 0:01:20.3]} 19... Bc6
{[%clk 0:02:25.5]} 20. g3 {[%clk 0:01:19.7]} 20... Kf8 {[%clk 0:02:24.8]} 21.
Rac1 {[%clk 0:01:14.5]} 21... Be5 {[%clk 0:02:24.1]} 22. b3 {[%clk 0:01:12.2]}
22... Red8 {[%clk 0:02:21.4]} 23. Ne4 {[%clk 0:01:00.8]} 23... f5 {[%clk
0:01:58.4]} 24. Nc5 {[%clk 0:00:53.8]} 24... Bd4 {[%clk 0:01:53.2]} 25. Bxe6
{[%clk 0:00:52.6]} 25... f4 {[%clk 0:01:44.1]} 26. Bf5 {[%clk 0:00:34.8]} 26...
fxg3 {[%clk 0:01:44]} 27. hxg3 {[%clk 0:00:34.2]} 27... Rd6 {[%clk 0:01:44.4]}
28. Ne4 {[%clk 0:00:31.1]} 28... Rh6 {[%clk 0:01:42.7]} 29. Kg2 {[%clk
0:00:28.5]} 29... Re8 {[%clk 0:01:42.4]} 30. f3 {[%clk 0:00:26.1]} 30... Re5
{[%clk 0:01:39.2]} 31. g4 {[%clk 0:00:25.6]} 31... Ra5 {[%clk 0:01:31.5]} 32.
Re2 {[%clk 0:00:24.5]} 32... Be5 {[%clk 0:01:30.7]} 33. Kg1 {[%clk 0:00:22.8]}
33... Bf4 {[%clk 0:01:28.8]} 34. Rd1 {[%clk 0:00:21.3]} 34... Kg7 {[%clk
0:01:17.1]} 35. Rc2 {[%clk 0:00:21.1]} 35... Bd5 {[%clk 0:00:55.9]} 36. b4
{[%clk 0:00:17.2]} 36... Rxa2 {[%clk 0:00:55.3]} 37. Rxa2 {[%clk 0:00:17.3]}
37... Bxa2 {[%clk 0:00:55.9]} 38. Ra1 {[%clk 0:00:17.7]} 38... Bc4 {[%clk
0:00:55.8]} 39. Nc5 {[%clk 0:00:17.7]} 39... Be3+ {[%clk 0:00:55.1]} 40. Kg2
{[%clk 0:00:17.8]} 40... Rd6 {[%clk 0:00:55.5]} 41. Kg3 {[%clk 0:00:15.5]} 41...
Rd4 {[%clk 0:00:53.4]} 42. Nxa6 {[%clk 0:00:13.9]} 42... Bf4+ {[%clk 0:00:51.1]}
43. Kf2 {[%clk 0:00:11.6]} 43... Rd2+ {[%clk 0:00:51.1]} 44. Ke1 {[%clk
0:00:12.1]} 44... Rh2 {[%clk 0:00:51]} 45. Ra5 {[%clk 0:00:11.4]} 45... Bd2+
{[%clk 0:00:48.9]} 46. Kd1 {[%clk 0:00:10.4]} 46... Bc3 {[%clk 0:00:44.1]} 47.
Rc5 {[%clk 0:00:07.3]} 47... Bb3+ {[%clk 0:00:44.2]} 48. Bc2 {[%clk 0:00:05.3]}
48... Rxc2 {[%clk 0:00:41.7]} 0-1